[Event "67th Mexican-ch Open 2022"]
[Site "Chihuahua"]
[Date "2022.04.14"]
[Round "3.9"]
[White "Luna Javier, Edgar Froylan"]
[Black "Gonzalez Zamora, Juan Carlos"]
[Result "0-1"]
[ECO "D11"]
[WhiteElo "2148"]
[BlackElo "2544"]
[Annotator "TA"]
[PlyCount "152"]
[EventDate "2022.04.12"]
[EventType "swiss"]
[EventCountry "MEX"]
[SourceTitle "playchess.com"]
[Source "ChessBase"]
[SourceQuality "1"]
[TimeControl "5400+30"]

{[%evp 15,152,-10,-9,0,0,-13,-7,-3,-12,-20,-20,-33,-29,-29,-19,-139,-161,-164,-132,-142,-141,-354,-171,-167,-165,-177,-135,-133,-130,-133,-131,-136,-129,-137,-129,-155,-124,-129,-127,-135,-99,-161,-161,-161,-161,-161,-161,-161,-161,-160,-157,-197,-186,-212,-196,-238,-208,-212,-221,-219,-223,-210,-208,-206,-222,-212,-203,-205,-67,-67,-41,-41,-41,-46,-8,-8,0,0,0,0,0,0,0,-727,-646,-852,-840,-947,-947,-863,-840,-1101,-1630,-1542,-1495,-1305,-1058,-29961,-11810,-29969,-29970,-29967,-29971,-29971,-29970,-29969,-29971,-29971,-29972,-29972,-29973,-29971,-6181,-6181,-6171,-31,-31,-29980,-29981,-29985,-29986,-29986,-29987,-29987,-29988,-29988,-29989,-29990,-29988,-29988,-29989,-29989,-29989,-29989,-29990,-29990,-29991,-29991,-29992]} 1. Nf3 {[%emt 0:11:46]} Nf6 {[%emt 0:05:38]} 2. g3 {[%emt 0:00:22]} d5 {[%emt 0:00:30]} 3. Bg2 {[%emt 0:00:29]} c6 {[%emt 0:00:23]} 4. O-O {[%emt 0:00:26]} Bg4 {[%emt 0:00:03]} 5. c4 {[%emt 0:02:03]} e6 {[%emt 0:00:12]} 6. Ne5 {[%emt 0:01:34]} Bf5 {[%emt 0:00:47]} 7. d4 {[%emt 0:00:07]} Nbd7 {[%emt 0:00:21]} 8. Nc3 {[%emt 0:01:09]} Be7 {[%emt 0:04:12]} 9. f4 {[%emt 0:03:09] D11: Slav Defence: 3 Nf3 sidelines and 3...Nf6 4 e3 Bg4.} h5 {[%emt 0:01:06]} 10. h3 {[%emt 0:03:19]} Bb4 {[%emt 0:23:20] [#]} 11. Qb3 $146 {[%emt 0:08:47] The position is equal.} ({Predecessor:} 11. cxd5 exd5 12. e3 Bxc3 13. bxc3 Ne4 14. Bxe4 Bxe4 15. Nf3 Bf5 16. Kh2 Nf6 17. Ng5 Ne4 18. Nxe4 Bxe4 19. Qb3 Qb6 20. Ba3 {½-½ (20) Kverndal,L (1805)-Johansson,P (2017) Gausdal 2007}) 11... a5 {[%emt 0:03:03]} 12. Be3 {[%emt 0:02:43]} O-O {[%emt 0:09:02]} 13. Kh2 {[%emt 0:08:17]} dxc4 {[%emt 0:03:56]} 14. Qxc4 {[%emt 0:04:56]} Nd5 {[%emt 0:01:21]} 15. Bd2 {[%emt 0:05:13]} (15. Bg1 $11) 15... Nxe5 {[%emt 0:10:48]} 16. fxe5 {[%emt 0:01:24]} Nb6 {[%emt 0:00:22]} 17. Qb3 {[%emt 0:01:02]} Qxd4 {[%emt 0:00:05]} 18. e4 $2 {[%emt 0:06:44] [#]} (18. Rad1 $17) 18... Bg6 {[%emt 0:01:16]} (18... Qxd2 19. exf5 Nd5 20. Nxd5 (20. Rad1 Qe3 $17) 20... cxd5 21. Rad1 $15) (18... Bxh3 $142 $1 {[%mdl 512]} 19. Qc2 (19. Rad1 Bxg2) 19... Bg4) 19. Rad1 $19 {[%emt 0:03:06][%cal Ba1d1,Bd1d6,Bd6b6][%mdl 32]} Qc4 {[%emt 0:06:20]} (19... Qxe5 20. Bf4 Qc5 21. Bd6 $15) 20. Be3 {[%emt 0:03:25]} c5 {[%emt 0:00:39]} 21. Rd6 {[%emt 0:02:52] [#]} a4 $1 {[%emt 0:03:34]} 22. Nxa4 {[%emt 0:05:42]} Qxb3 {[%emt 0:00:18]} ({Stronger than} 22... Rxa4 23. Rxb6 Qxb3 24. axb3 $11) 23. axb3 {[%emt 0:00:02]} Nxa4 {[%emt 0:00:04]} 24. bxa4 {[%emt 0:00:13]} Rxa4 {[%emt 0:00:01]} 25. Rb6 {[%emt 0:06:34]} Rb8 {[%emt 0:00:50]} 26. Rc1 {[%emt 0:00:55]} Ba5 {[%emt 0:00:26]} 27. Rb5 {[%emt 0:00:17]} c4 {[%emt 0:05:24]} 28. Bf3 {[%emt 0:10:36]} (28. Rc2 $17 {might work better.}) 28... Rd8 {[%emt 0:02:59] White must now prevent ...Rd3.} 29. Kg1 {[%emt 0:04:01]} ({Don't blunder} 29. Rxb7 $2 Rd3 30. Bd1 Ra2 $19) 29... Rd3 {[%emt 0:05:41]} 30. Kf2 {[%emt 0:00:06]} c3 $1 $36 {[%emt 0:00:49][%mdl 2048] Black is in control.} 31. Be2 {[%emt 0:00:57]} Rd7 {[%emt 0:03:42]} 32. bxc3 {[%emt 0:00:55]} Bxe4 {[%emt 0:03:42]} 33. Rb2 {[%emt 0:00:01] Prevents Ra2. And now Bb5 would win.} ({Don't go for} 33. Rd1 $2 Rxd1 34. Bxd1 Ra2+ 35. Be2 b6 $19) 33... Rc7 {[%emt 0:00:36]} 34. c4 {[%emt 0:01:03]} Ra3 {[%emt 0:01:19]} 35. Rb5 {[%emt 0:01:41]} Bc3 {[%emt 0:01:30]} 36. Bb6 {[%emt 0:01:02] Threatens to win with Rxc3.} Rd7 {[%emt 0:00:32][%cal Oh5h4]} 37. Bc5 {[%emt 0:00:07]} Bd4+ {[%emt 0:00:23]} 38. Bxd4 {[%emt 0:00:01]} Rxd4 {[%emt 0:00:08]} 39. Rd1 {[%emt 0:02:09] Against Rd2} Rxd1 {[%emt 0:00:16]} 40. Bxd1 {[%emt 0:00:02][%mdl 4096] Endgame KRB-KRB} h4 {[%emt 0:00:33]} 41. Rb3 {[%emt 0:00:48]} Ra2+ {[%emt 0:01:32]} (41... Ra5 $1 $19 42. Re3 hxg3+ 43. Kxg3 Bc6) 42. Ke3 $15 {[%emt 0:00:02]} Bc2 {[%emt 0:03:47] &Nero is more active.} (42... hxg3 {is interesting.} 43. Kxe4 g2 44. Rg3 Ra1) 43. Bxc2 {[%emt 0:01:53]} Rxc2 {[%emt 0:00:00] KR-KR} 44. Kd4 {[%emt 0:00:00]} Rd2+ {[%emt 0:00:00]} 45. Kc5 $1 {[%emt 0:00:03]} hxg3 {[%emt 0:00:05]} 46. Rxg3 {[%emt 0:00:02]} Rd7 {[%emt 0:00:52]} 47. Kb6 {[%emt 0:00:26]} Kh7 {[%emt 0:00:31]} 48. c5 {[%emt 0:00:58]} f5 {[%emt 0:00:40]} 49. Ra3 $2 {[%emt 0:00:56][%mdl 8192] [#]} (49. exf6 $11 gxf6 50. Ra3) 49... f4 $1 $19 {[%emt 0:00:21]} 50. h4 {[%emt 0:00:34]} Rf7 {[%emt 0:00:15] ...f3 is the strong threat.} 51. Rf3 {[%emt 0:00:24]} Kg6 {[%emt 0:00:17] aiming for ...Kf5.} 52. c6 {[%emt 0:00:21]} bxc6 {[%emt 0:00:06] Hoping for ...Kf5.} 53. Kxc6 {[%emt 0:00:02]} Kf5 {[%emt 0:00:23]} 54. Kd6 {[%emt 0:00:27]} Ra7 {[%emt 0:00:12]} 55. Rf1 {[%emt 0:00:22]} Ra6+ {[%emt 0:00:07]} 56. Ke7 {[%emt 0:00:02]} Kxe5 {[%emt 0:00:36]} 57. Kf7 {[%emt 0:00:16]} Ra7+ {[%emt 0:01:27]} 58. Kg6 {[%emt 0:00:02]} Ke4 {[%emt 0:00:15]} 59. Re1+ {[%emt 0:00:08]} Kd3 {[%emt 0:01:10]} 60. Rf1 {[%emt 0:00:47]} Ke3 {[%emt 0:00:16]} 61. Re1+ {[%emt 0:00:09]} Kf2 {[%emt 0:00:24]} 62. Rxe6 {[%emt 0:00:18]} f3 {[%emt 0:00:05]} 63. h5 {[%emt 0:01:31]} Kg2 {[%emt 0:00:25] ( -> ...f2)} 64. Re5 {[%emt 0:01:25]} f2 {[%emt 0:00:40]} 65. Rg5+ {[%emt 0:00:02]} Kf1 {[%emt 0:00:57]} 66. Rf5 $2 {[%emt 0:00:35][%mdl 8192] [#]} (66. Re5 $15 Rd7 67. Rg5) 66... Re7 $1 {[%emt 0:00:06] Black mates.} 67. Rf7 {[%emt 0:00:47]} Rxf7 {[%emt 0:00:53]} 68. Kxf7 {[%emt 0:00:02]} Ke2 {[%emt 0:00:11]} 69. Kxg7 {[%emt 0:00:02]} f1=Q {[%emt 0:00:08]} 70. h6 {[%emt 0:00:02]} Qg2+ {[%emt 0:00:10]} 71. Kh8 {[%emt 0:01:11]} Qa8+ {[%emt 0:00:12]} 72. Kg7 {[%emt 0:00:05]} Qb7+ {[%emt 0:00:10]} 73. Kg8 {[%emt 0:00:22]} Qc8+ {[%emt 0:00:10]} 74. Kg7 {[%emt 0:00:02]} Qd7+ {[%emt 0:00:07]} 75. Kg8 {[%emt 0:00:02]} Qd8+ {[%emt 0:00:18]} 76. Kg7 {[%emt 0:00:21]} Qg5+ {[%emt 0:00:14] Weighted Error Value: White=0.73/Black=0.12 (very precise)} 0-1

[Event "67th Mexican-ch Open 2022"]
[Site "Chihuahua"]
[Date "2022.04.14"]
[Round "3.10"]
[White "Almendarez Verdin, Manuel Adan"]
[Black "Perez Gormaz, Matias"]
[Result "0-1"]
[ECO "A58"]
[WhiteElo "1662"]
[BlackElo "2404"]
[Annotator "TA"]
[PlyCount "74"]
[EventDate "2022.04.12"]
[EventType "swiss"]
[EventCountry "MEX"]
[SourceTitle "playchess.com"]
[Source "ChessBase"]
[SourceQuality "1"]
[TimeControl "5400+30"]

{[%evp 9,74,29,47,52,52,44,52,45,54,40,37,48,36,31,44,14,16,31,15,0,0,0,0,-6,0,0,25,36,31,0,0,-14,-13,-6,-25,-29,0,-100,0,0,0,0,0,0,0,0,0,0,11,0,0,0,0,0,0,0,0,0,0,-81,-67,-893,-859,-1155,-1080,-29989,-29990]} 1. d4 {[%emt 0:00:04]} Nf6 {[%emt 0:11:59]} 2. c4 {[%emt 0:00:12]} c5 {[%emt 0:00:11]} 3. d5 {[%emt 0:00:08]} b5 {[%emt 0:00:04]} 4. cxb5 {[%emt 0:00:21]} a6 {[%emt 0:00:04]} 5. bxa6 {[%emt 0:00:12]} g6 {[%emt 0:00:05]} 6. Nc3 {[%emt 0:00:19] A58: Benko/Volga Gambit: Lines with 5 bxa6.} Bg7 {[%emt 0:00:06]} 7. a7 {[%emt 0:01:25]} Rxa7 {[%emt 0:00:04]} 8. e4 {[%emt 0:00:16] e5 is the strong threat. White is slightly better.} O-O {[%emt 0:00:05]} 9. Nf3 {[%emt 0:01:15]} e6 {[%emt 0:02:59]} 10. Be2 {[%emt 0:03:04]} exd5 {[%emt 0:01:09]} 11. exd5 {[%emt 0:00:17]} Ba6 {[%emt 0:00:56]} 12. Bxa6 {[%emt 0:03:03]} Nxa6 {[%emt 0:00:04]} 13. O-O {[%emt 0:00:07]} d6 {[%emt 0:00:01] [#]} 14. Nb5 $146 {[%emt 0:02:10]} ({Predecessor:} 14. Bf4 Re8 15. Qd2 Ne4 16. Nxe4 Rxe4 17. Rae1 Rxe1 18. Rxe1 Re7 19. Rxe7 Qxe7 20. h4 {1-0 (39) Korobov,A (2675)-Boehme,M (2146) Karlsruhe 2019}) 14... Rb7 {[%emt 0:00:11][%cal Ba7b7,Bb7b4,Bb4d4][%mdl 32]} 15. a4 {[%emt 0:00:09]} Nc7 {[%emt 0:00:35]} 16. Nc3 {[%emt 0:01:39]} Qd7 {[%emt 0:01:03]} 17. h3 {[%emt 0:03:24]} Rfb8 {[%emt 0:02:39]} 18. Qd3 {[%emt 0:01:43]} Rb4 {[%emt 0:03:18]} 19. Rd1 {[%emt 0:02:46]} Qc8 {[%emt 0:00:05]} 20. Nd2 {[%emt 0:07:16][%cal Bf3d2,Bd2e4,Be4c3,Bc3a4,Ba4b6,Bb6c4][%mdl 32]} Rd4 {[%emt 0:00:42]} 21. Qf3 {[%emt 0:05:18]} Nfxd5 {[%emt 0:00:10]} 22. Nde4 {[%emt 0:01:17]} Qe6 {[%emt 0:04:44]} 23. a5 {[%emt 0:12:34] [#]} (23. Nxd5 $11 Rxd5 24. Ng5) 23... Nxc3 {[%emt 0:13:26]} (23... Re8 $1 $17 {Strongly threatening ...Rxd1+.} 24. Rxd4 cxd4 25. Nxd5 Qxd5) 24. Nxc3 $11 {[%emt 0:01:17]} Rxd1+ {[%emt 0:00:23]} 25. Qxd1 {[%emt 0:00:11]} d5 {[%emt 0:00:17][%cal Bd6d5,Bd5d4,Bd4c3][%mdl 32]} 26. Bf4 {[%emt 0:03:04]} Be5 {[%emt 0:00:07]} (26... Rxb2 {is interesting.} 27. Na4 Rb4 28. Nxc5 Qf6) 27. Bxe5 {[%emt 0:00:51]} Qxe5 {[%emt 0:00:05]} 28. Na4 {[%emt 0:00:12]} c4 {[%emt 0:06:27]} 29. Qd2 {[%emt 0:02:36]} d4 {[%emt 0:17:15]} 30. Nb6 {[%emt 0:03:30] aiming for Nd7.} c3 {[%emt 0:01:35]} 31. bxc3 {[%emt 0:00:31]} dxc3 {[%emt 0:00:04]} 32. Qc2 {[%emt 0:01:19]} Rd8 {[%emt 0:00:15] Hoping for ...Nb5.} 33. Nc4 $1 {[%emt 0:00:30]} Qf6 {[%emt 0:05:35]} (33... Qd4 $5 34. Ne3 Ra8 $11) 34. Rb1 {[%emt 0:03:12] [#]} (34. Rd1 $11 {keeps the balance.}) 34... Ne6 $1 $36 {[%emt 0:04:37][%mdl 2048] Threatens to win with ...Nd4. Black has some pressure. &Nero is more active.} 35. Kf1 $2 {[%emt 0:18:34][%mdl 8192]} (35. Kh1 $15) 35... Qf4 $19 {[%emt 0:01:48]} 36. Qxc3 {[%emt 0:06:33]} Qh2 {[%emt 0:00:08] ( -> ...Nf4)} 37. Nd2 {[%emt 0:11:18]} Nf4 {[%emt 0:02:05] Weighted Error Value: White=0.56/Black=0.06 (flawless)} 0-1

[Event "67th Mexican-ch Open 2022"]
[Site "Chihuahua"]
[Date "2022.04.14"]
[Round "3.11"]
[White "Fernandez Hernandez, Arturo A."]
[Black "Montes Orozco, Miguel Angel"]
[Result "0-1"]
[ECO "A12"]
[WhiteElo "2376"]
[BlackElo "1914"]
[Annotator "TA"]
[PlyCount "114"]
[EventDate "2022.04.12"]
[EventType "swiss"]
[EventCountry "MEX"]
[SourceTitle "playchess.com"]
[Source "ChessBase"]
[SourceQuality "1"]
[TimeControl "5400+30"]

{[%evp 9,114,6,13,-7,0,0,20,16,17,0,0,0,0,-38,-44,-60,-45,-78,-81,-153,-145,-155,-53,-66,-28,-24,-24,-42,78,0,0,0,0,0,66,70,66,72,59,0,0,-864,-857,-922,-892,-931,-923,-1691,-1033,-1292,-1286,-1238,-1192,-1078,-1053,-1747,-1600,-1790,-1307,-1235,-1135,-1154,-1147,-1119,-1089,-999,-919,-1505,-1341,-1284,-1301,-1782,-1480,-29981,-1725,-29991,-1965,-2117,-1861,-2003,-2007,-1898,-1824,-1588,-1166,-1819,-1800,-1997,-1292,-1275,-1233,-1064,-1040,-1032,-1016,-957,-838,-1766,-1703,-1677,-1598,-4134,-2824,-1837,-1837,-1282,-1282]} 1. Nf3 {[%emt 0:02:50]} Nf6 {[%emt 0:04:12]} 2. c4 {[%emt 0:00:24]} c6 {[%emt 0:00:21]} 3. e3 {[%emt 0:01:44]} d5 {[%emt 0:00:38]} 4. b3 {[%emt 0:02:04]} Bg4 {[%emt 0:01:22]} 5. Bb2 {[%emt 0:01:38]} e6 {[%emt 0:00:47]} 6. h3 {[%emt 0:02:56] A12: English Opening: 1...c6 with b3 by White.} Bh5 {[%emt 0:01:46]} 7. Be2 {[%emt 0:00:59]} h6 {[%emt 0:04:25]} 8. O-O {[%emt 0:05:41] The position is equal.} Nbd7 {[%emt 0:00:10]} 9. Nc3 {[%emt 0:01:51]} Bd6 {[%emt 0:03:00]} 10. cxd5 {[%emt 0:02:03]} exd5 {[%emt 0:01:39] [#]} 11. Nd4 $146 {[%emt 0:01:31]} ({Predecessor:} 11. Rc1 Qe7 12. Nh4 Bg6 13. Nxg6 fxg6 14. Qc2 Qf7 15. d3 Nf8 16. e4 d4 17. Na4 {0-1 (28) Krajnc,U (2124)-Papez,V (1800) Slovenia 2014}) 11... Bg6 {[%emt 0:01:32]} 12. f4 {[%emt 0:00:53]} O-O {[%emt 0:00:52][%cal Bh8f8,Bf8e8,Be8e3][%mdl 32]} 13. Nf3 {[%emt 0:12:50]} Re8 {[%emt 0:07:39]} 14. d4 {[%emt 0:07:27]} (14. Rc1 $142) 14... Rxe3 $17 {[%emt 0:06:16] White must now prevent ...Qe7. &Nero is more active.} 15. Ne5 {[%emt 0:00:09]} c5 {[%emt 0:03:11]} (15... Bb4 $1 $17 {[%cal Rb4c3]} 16. f5 Bxc3 17. Bxc3 Rxc3 18. fxg6 fxg6 19. Nxd7 Qxd7) 16. Nb5 {[%emt 0:03:39]} Bxe5 {[%emt 0:03:21]} 17. dxe5 {[%emt 0:03:29]} Ne4 {[%emt 0:01:14] With the idea ...a6.} 18. Bg4 {[%emt 0:04:31] f5 is the strong threat. This bishop pair is nice.} d4 {[%emt 0:25:32] [#]} (18... Ng3 $15 {keeps the upper hand.} 19. f5 Nxf1 20. fxg6 Nxe5 $1 21. gxf7+ Nxf7 22. Qxf1 Qe7) 19. Nxd4 $1 {[%emt 0:06:49]} Ng3 $36 {[%emt 0:15:16][%mdl 2048] Black fights for an advantage.} (19... Nxe5 20. fxe5) 20. f5 {[%emt 0:11:07]} Bh7 {[%emt 0:00:50]} ({Much less strong is} 20... cxd4 21. fxg6 Nxe5 22. gxf7+ Nxf7 23. Re1 $16) 21. e6 {[%emt 0:05:16]} Nxf1 {[%emt 0:14:01]} (21... Nf6 $1 $11 22. exf7+ Kxf7) 22. exf7+ $1 $14 {[%emt 0:04:28]} Kxf7 {[%emt 0:00:09]} 23. Ne6 {[%emt 0:00:32]} Qe7 {[%emt 0:00:19] Hoping for ...Ng3.} 24. Nxg7 {[%emt 0:04:44]} (24. Qxf1 $14 Nf6 25. Qc4) 24... Re5 $11 {[%emt 0:01:47]} 25. Qxd7 $4 {[%emt 0:06:49][%mdl 8192] Black keeps a firm grip on the game.} Qxd7 $19 {[%emt 0:00:59]} 26. Bxe5 {[%emt 0:00:02]} Ne3 {[%emt 0:00:06]} 27. Bh5+ {[%emt 0:00:52]} Kg8 {[%emt 0:00:11]} 28. f6 {[%emt 0:00:43]} Rf8 {[%emt 0:00:37] aiming for ...Qd5.} 29. Re1 {[%emt 0:01:27]} Qd2 {[%emt 0:01:44][%csl Ge3,LRa2,LRe1,LRg2][%cal Rd2g2]} 30. Re2 {[%emt 0:00:38]} Qc1+ {[%emt 0:00:13]} 31. Kf2 {[%emt 0:00:07]} Nd1+ {[%emt 0:00:31]} 32. Kf3 {[%emt 0:00:05]} Nc3 {[%emt 0:00:10]} 33. Re3 {[%emt 0:03:37]} Qf1+ {[%emt 0:00:08]} 34. Kg3 {[%emt 0:00:12]} Ne4+ {[%emt 0:00:51]} 35. Kh2 {[%emt 0:00:35]} Rxf6 {[%emt 0:00:16]} 36. Ne8 {[%emt 0:01:12]} Rf2 {[%emt 0:01:24][%csl Gf1,LRa2,LRg2][%cal Rf2g2]} 37. Bf3 {[%emt 0:00:34] [#]} Bg6 $1 {[%emt 0:00:24]} 38. Nc7 {[%emt 0:02:18] [#]} (38. Rxe4 Rxf3) 38... Rd2 $1 {[%emt 0:00:54] And now ...Ng5 would win.} 39. Ne6 {[%emt 0:00:32] [#]} (39. Ne8 h5) 39... Qf2 $1 {[%emt 0:00:28]} 40. Bf4 {[%emt 0:00:29] [#]} (40. Rxe4 Qxf3) 40... Kf7 $1 {[%emt 0:00:28]} 41. Nc7 {[%emt 0:00:31] [#]} (41. Rxe4 Bxe4) 41... Qh4 $1 {[%emt 0:00:16]} 42. Bg4 {[%emt 0:00:23] [#]} (42. Nd5 Rxd5) 42... h5 {[%emt 0:00:50]} (42... Rxg2+ $142 $3 43. Kxg2 Qf2+ 44. Kh1 Qf1+ 45. Kh2 Qxf4+ 46. Kh1 Qxe3 47. Be6+ Kf8 48. Bd7 Qe1+ 49. Kh2 Qg3+ 50. Kh1 Nf2#) 43. Be6+ {[%emt 0:00:37] Black is clearly winning.} Ke7 {[%emt 0:00:04]} 44. Rf3 {[%emt 0:00:09]} Rf2 {[%emt 0:00:15]} 45. Bg3 {[%emt 0:00:49] [#]} Nxg3 $1 {[%emt 0:01:06]} 46. Rxf2 {[%emt 0:01:14] [#]} Nf5 $1 {[%emt 0:00:06]} 47. Rf3 {[%emt 0:00:00]} (47. Kg1 Qd4) 47... Nd4 {[%emt 0:00:06][%csl LRe6,LRf3]} 48. Rg3 {[%emt 0:00:00]} Nxe6 {[%emt 0:00:12]} 49. Nxe6 {[%emt 0:00:26]} Kxe6 {[%emt 0:00:04]} 50. Rxg6+ {[%emt 0:00:04][%mdl 4096] Endgame KQ-KR} Kf5 {[%emt 0:00:22]} 51. Rg7 {[%emt 0:00:29]} Qf4+ {[%emt 0:00:05]} 52. Kh1 {[%emt 0:00:08]} Qe4 {[%emt 0:00:40]} 53. Rd7 {[%emt 0:01:06]} h4 {[%emt 0:00:16] Strongly threatening ...Ke6.} 54. Kh2 {[%emt 0:00:24]} Ke6 {[%emt 0:00:35] ( -> ...Qe5+)} 55. Rd8 {[%emt 0:00:06]} Qe5+ {[%emt 0:00:21]} 56. Kh1 {[%emt 0:00:15]} Qa1+ {[%emt 0:00:02]} 57. Kh2 {[%emt 0:00:04]} Qxa2 {[%emt 0:00:07] Weighted Error Value: White=0.73/Black=0.36} 0-1

[Event "67th Mexican-ch Open 2022"]
[Site "Chihuahua"]
[Date "2022.04.14"]
[Round "3.12"]
[White "Figueredo Losada, Leonel"]
[Black "Avila Bautista, Roberto Al"]
[Result "1-0"]
[ECO "B23"]
[WhiteElo "2342"]
[BlackElo "2090"]
[Annotator "TA"]
[PlyCount "135"]
[EventDate "2022.04.12"]
[EventType "swiss"]
[EventCountry "MEX"]
[SourceTitle "playchess.com"]
[Source "ChessBase"]
[SourceQuality "1"]
[TimeControl "5400+30"]

{[%evp 9,135,44,47,44,37,46,37,54,29,37,37,14,22,27,24,0,131,124,206,127,121,121,121,112,114,119,156,141,136,120,126,124,127,119,121,125,131,97,172,179,162,111,192,194,181,153,195,205,187,164,238,244,206,180,223,211,344,337,316,306,356,378,360,365,435,343,420,412,388,361,314,173,173,173,173,173,2449,2033,11817,2640,5600,2250,6713,6593,29952,3881,8756,5373,29945,29947,29950,10795,29961,29960,29960,29956,7104,6154,4401,4136,1333,8,8,0,29965,29956,29968,29969,29969,29970,29970,29970,29973,29973,29972,29974,29974,29975,29975,29976,29977,29978,29978,29979,29980,29980,29988,29989]} 1. e4 {[%emt 0:00:30]} c5 {[%emt 0:00:54]} 2. Nc3 {[%emt 0:00:04]} g6 {[%emt 0:00:20]} 3. d4 {[%emt 0:00:05]} cxd4 {[%emt 0:03:39]} 4. Qxd4 {[%emt 0:00:10]} Nf6 {[%emt 0:00:30]} 5. Be3 {[%emt 0:00:30]} Bg7 {[%emt 0:00:30]} 6. f3 {[%emt 0:02:35] B23: Closed Sicilian: Lines without g3.} Nc6 {[%emt 0:07:25]} 7. Qd2 {[%emt 0:00:21]} O-O {[%emt 0:01:07]} 8. Nge2 $1 {[%emt 1:30:15][%mdl 4] White is slightly better. is now more promising than 8.0-0-0.} d6 {[%emt 0:01:16]} 9. h4 {[%emt 0:00:00][%cal Oh4h5] [#]} h5 $146 {[%emt 0:17:07]} ({Predecessor:} 9... Ne5 10. Nf4 h5 11. O-O-O Bd7 12. Nfd5 Rc8 13. Bg5 Kh7 14. f4 Nc4 15. Bxc4 Rxc4 16. Bxf6 exf6 {1-0 (50) Vishnu,P (2476)-Buscar,M (2088) Chess.com INT 2022}) 10. O-O-O {[%emt 0:00:00]} Qa5 {[%emt 0:01:15]} 11. Kb1 {[%emt 0:01:30]} b5 12. Bh6 {[%emt 0:00:00]} Ne5 {[%emt 0:25:41]} (12... Be6 $11) 13. Nd5 $16 {[%emt 0:00:00]} Qd8 {[%emt 0:07:59]} (13... Qxd2 $16 14. Nxe7+ (14. Bxd2 Nxd5 15. exd5 a6 $11) 14... Kh7 15. Bxd2 (15. Rxd2 $2 {is the wrong capture.} Bxh6 16. Rxd6 Be6 $19) 15... Bb7) 14. Bxg7 {[%emt 0:00:00]} Kxg7 {[%emt 0:00:47]} 15. Nxf6 exf6 16. Nf4 {[%emt 0:00:00]} a6 {[%emt 0:09:08]} 17. Be2 {[%emt 0:00:00]} Be6 {[%emt 0:06:02]} 18. Qxd6 {[%emt 0:00:00]} Qc8 {[%emt 0:02:57]} 19. Qe7 {[%emt 0:00:00] Hoping for Rd6.} Re8 {[%emt 0:04:53]} 20. Nxe6+ {[%emt 0:00:00]} Qxe6 {[%emt 0:00:03]} 21. Qxe6 {[%emt 0:00:00]} Rxe6 {[%emt 0:00:59]} 22. Rd5 {[%emt 0:00:00]} Rc8 {[%emt 0:01:30]} 23. Rhd1 {[%emt 0:00:00]} Nc4 {[%emt 0:00:27]} (23... f5 $16 {keeps fighting.}) 24. Bxc4 $18 {[%emt 0:00:00]} Rxc4 {[%emt 0:00:02][%mdl 4096] Endgame KRR-KRR} 25. Rd6 {[%emt 0:00:00]} ({White should play} 25. R1d2 $18) 25... Rc6 {[%emt 0:02:54]} (25... g5 $16) 26. Rxc6 $1 {[%emt 0:00:00]} Rxc6 {[%emt 0:00:03] KR-KR} 27. b3 {[%emt 0:00:00]} Kf8 {[%emt 0:02:03]} 28. Kb2 {[%emt 0:00:00]} Ke7 {[%emt 0:00:15]} 29. c4 {[%emt 0:00:00]} Ke6 {[%emt 0:01:44]} (29... bxc4 {was worth a try.} 30. Rc1 f5) 30. cxb5 {[%emt 0:00:00]} axb5 {[%emt 0:00:27]} 31. Rd5 {[%emt 0:00:00]} Rb6 {[%emt 0:00:13] [#]} 32. Rc5 $1 {[%emt 0:00:00]} Kd6 {[%emt 0:00:40] [#]} (32... b4 {was called for.} 33. a4 bxa3+ 34. Kxa3 Ra6+ 35. Kb2 Kd6) 33. b4 $1 {[%emt 0:00:00]} Rb8 {[%emt 0:00:25]} 34. Kb3 {[%emt 0:00:00]} Rb7 35. a4 bxa4+ {[%emt 0:00:39]} 36. Kxa4 {[%emt 0:00:00]} Ra7+ {[%emt 0:00:16]} 37. Kb3 {[%emt 0:00:00]} Ra1 {[%emt 0:00:25]} 38. Rc2 {[%emt 0:00:00]} Rb1+ {[%emt 0:00:36]} 39. Ka4 {[%emt 0:00:00]} g5 {[%emt 0:01:09]} 40. Rc5 {[%emt 0:00:00]} (40. b5 $142) 40... Rb2 {[%emt 0:03:17]} 41. hxg5 {[%emt 0:00:00]} Rxg2 {[%emt 0:00:15]} 42. gxf6 {[%emt 0:00:00]} Rf2 $2 {[%emt 0:00:24]} (42... h4 43. Rh5 Rh2) 43. Rxh5 {[%emt 0:00:00]} Rxf3 {[%emt 0:00:10]} 44. Ra5 {[%emt 0:00:00]} (44. Rc5 $142 Ke6 45. e5) 44... Kc6 {[%emt 0:01:31]} 45. e5 {[%emt 0:00:00]} (45. Ra7 $142 Re3 46. Rxf7 Rxe4 47. Ka5 Re5+ 48. Ka6) 45... Kb6 {[%emt 0:00:26]} 46. Rd5 {[%emt 0:00:00] b5 would kill now.} Re3 {[%emt 0:00:10]} 47. Rc5 {[%emt 0:00:00]} (47. b5 $142 Re4+ 48. Kb3 Ka5 49. Rd7 Rxe5 50. Kc4 Kb6 51. Rxf7 Rf5 52. Rf8) 47... Re4 {[%emt 0:00:42]} 48. Kb3 {[%emt 0:00:00]} Kb7 {[%emt 0:00:14]} 49. b5 {[%emt 0:00:00]} Kb6 {[%emt 0:00:21]} 50. Rd5 {[%emt 0:00:00] Threatening mate with Kc2.} Ka5 {[%emt 0:01:00]} 51. Kc3 {[%emt 0:00:00]} Kb6 {[%emt 0:00:19]} 52. Kd3 {[%emt 0:00:00]} Re1 {[%emt 0:00:24]} 53. Kd4 {[%emt 0:00:00]} Re2 {[%emt 0:00:20]} 54. Kc4 {[%emt 0:00:00] Intending Rd7 and mate.} Re4+ {[%emt 0:00:18]} 55. Rd4 $2 {[%emt 0:03:11]} (55. Kc3 $18 {Strongly threatening Rd7.} Re3+ 56. Kd4) 55... Rxe5 $11 {[%emt 0:00:09]} 56. Rd7 {[%emt 0:00:02]} Rc5+ $2 {[%emt 0:01:21][%mdl 8192]} (56... Rxb5 $11 57. Rxf7 Kc6) 57. Kd4 {[%emt 0:00:14] White mates.} Rxb5 {[%emt 0:00:22]} 58. Rxf7 {[%emt 0:00:04]} Rf5 {[%emt 0:00:20]} 59. Ke4 {[%emt 0:00:07]} Rf1 {[%emt 0:00:55]} 60. Ke5 {[%emt 0:00:43]} Kc6 {[%emt 0:00:35]} 61. Ra7 {[%emt 0:00:41]} Re1+ {[%emt 0:00:23]} 62. Kf5 {[%emt 0:00:04]} Kd6 {[%emt 0:00:30]} 63. Kg6 {[%emt 0:00:16]} Rg1+ {[%emt 0:00:24]} 64. Kf7 {[%emt 0:00:03]} Rg2 {[%emt 0:00:42]} 65. Kf8 {[%emt 0:00:15]} Ke6 {[%emt 0:00:26]} 66. f7 {[%emt 0:00:06]} Rb2 {[%emt 0:00:38]} 67. Ra6+ {[%emt 0:00:14]} Kd7 {[%emt 0:00:23]} 68. Kg7 {[%emt 0:00:29] Weighted Error Value: White=0.13 (very precise) /Black=0.76} 1-0